[Event "Titled Tuesday Blitz May 16 Early 2023"]
[White "Smietanska, Wiktoria"]
[Black "liwadas82"]
[WhiteFideId "21869359"]
[WhiteElo "1995"]
[BlackElo "2463"]
[Result "1-0"]
[Round "04"]
[TimeControl "180+2"]
[Date "2023.05.16"]
[WhiteClock "0:00:04"]
[BlackClock "0:00:07"]

1. c4 {[%clk 0:02:57]}  e5 {[%clk 0:02:59]} 2. Nc3 {[%clk 0:02:57]}  Nf6 {[%clk 0:03:00]} 3. Nf3 {[%clk 0:02:58]}  Nc6 {[%clk 0:03:00]} 4. e4 {[%clk 0:02:58]}  Bc5 {[%clk 0:02:58]} 5. Nxe5 {[%clk 0:02:58]}  Nxe5 {[%clk 0:02:52]} 6. d4 {[%clk 0:02:58]}  Bd6 {[%clk 0:02:37]} 7. c5 {[%clk 0:02:56]}  Bxc5 {[%clk 0:02:30]} 8. dxe5 {[%clk 0:02:56]}  Ng8 {[%clk 0:02:26]} 9. Qg4 {[%clk 0:02:47]}  Bf8 {[%clk 0:02:22]} 10. Bg5 {[%clk 0:02:33]}  f6 {[%clk 0:02:07]} 11. Bh4 {[%clk 0:02:27]}  d6 {[%clk 0:02:05]} 12. Qh5+ {[%clk 0:02:14]}  g6 {[%clk 0:02:03]} 13. Qf3 {[%clk 0:02:09]}  dxe5 {[%clk 0:01:57]} 14. Nd5 {[%clk 0:02:01]}  Bg7 {[%clk 0:01:48]} 15. O-O-O {[%clk 0:01:56]}  Bd7 {[%clk 0:01:42]} 16. Bc4 {[%clk 0:01:49]}  c6 {[%clk 0:01:42]} 17. Nc3 {[%clk 0:01:44]}  Qe7 {[%clk 0:01:40]} 18. g4 {[%clk 0:01:33]}  g5 {[%clk 0:01:35]} 19. Bg3 {[%clk 0:01:32]}  O-O-O {[%clk 0:01:30]} 20. Qe3 {[%clk 0:01:28]}  Kb8 {[%clk 0:01:28]} 21. f3 {[%clk 0:01:22]}  h5 {[%clk 0:01:19]} 22. gxh5 {[%clk 0:01:20]}  Nh6 {[%clk 0:01:06]} 23. h4 {[%clk 0:01:17]}  gxh4 {[%clk 0:00:58]} 24. Rxh4 {[%clk 0:01:06]}  Nf7 {[%clk 0:00:55]} 25. Kb1 {[%clk 0:01:02]}  Bh6 {[%clk 0:00:51]} 26. f4 {[%clk 0:01:01]}  exf4 {[%clk 0:00:42]} 27. Bxf4+ {[%clk 0:01:02]}  Bxf4 {[%clk 0:00:42]} 28. Qxf4+ {[%clk 0:01:02]}  Ne5 {[%clk 0:00:42]} 29. Bb3 {[%clk 0:00:56]}  Be6 {[%clk 0:00:41]} 30. Bxe6 {[%clk 0:00:54]}  Qxe6 {[%clk 0:00:41]} 31. Rf1 {[%clk 0:00:48]}  Qc4 {[%clk 0:00:34]} 32. Qxf6 {[%clk 0:00:38]}  Qd3+ {[%clk 0:00:33]} 33. Ka1 {[%clk 0:00:30]}  Nc4 {[%clk 0:00:33]} 34. Qf4+ {[%clk 0:00:20]}  Ka8 {[%clk 0:00:32]} 35. Rhh1 {[%clk 0:00:16]}  a6 {[%clk 0:00:22]} 36. Qf3 {[%clk 0:00:13]}  Qc2 {[%clk 0:00:20]} 37. Rf2 {[%clk 0:00:06]}  Rd2 {[%clk 0:00:20]} 38. Rxd2 {[%clk 0:00:06]}  Qxd2 {[%clk 0:00:21]} 39. Qe2 {[%clk 0:00:04]}  Qd4 {[%clk 0:00:17]} 40. Rd1 {[%clk 0:00:04]}  Qe5 {[%clk 0:00:17]} 41. Qxc4 {[%clk 0:00:04]}  Kb8 {[%clk 0:00:12]} 42. Qd4 {[%clk 0:00:04]}  Qxh5 {[%clk 0:00:11]} 43. a3 {[%clk 0:00:03]}  Qh7 {[%clk 0:00:10]} 44. Qd6+ {[%clk 0:00:03]}  Ka7 {[%clk 0:00:10]} 45. e5 {[%clk 0:00:04]}  Re8 {[%clk 0:00:10]} 46. e6 {[%clk 0:00:04]}  Qe7 {[%clk 0:00:09]} 47. Qxe7 {[%clk 0:00:04]}  Rxe7 {[%clk 0:00:10]} 48. Re1 {[%clk 0:00:04]}  Kb6 {[%clk 0:00:11]} 49. Kb1 {[%clk 0:00:04]}  Kc7 {[%clk 0:00:11]} 50. Kc2 {[%clk 0:00:03]}  Kd6 {[%clk 0:00:11]} 51. Na4 {[%clk 0:00:04]}  b5 {[%clk 0:00:09]} 52. Nc3 {[%clk 0:00:02]}  Rxe6 {[%clk 0:00:09]} 53. Rxe6+ {[%clk 0:00:03]}  Kxe6 {[%clk 0:00:10]} 54. Ne4 {[%clk 0:00:03]}  Kd5 {[%clk 0:00:09]} 55. Kd3 {[%clk 0:00:03]}  c5 {[%clk 0:00:09]} 56. Nf6+ {[%clk 0:00:04]}  Ke5 {[%clk 0:00:09]} 57. Nd7+ {[%clk 0:00:04]}  Kd6 {[%clk 0:00:08]} 58. Nb8 {[%clk 0:00:03]}  a5 {[%clk 0:00:08]} 59. Kc3 {[%clk 0:00:03]}  Kd5 {[%clk 0:00:08]} 60. Na6 {[%clk 0:00:03]}  b4+ {[%clk 0:00:07]} 61. axb4 {[%clk 0:00:03]}  axb4+ {[%clk 0:00:06]} 62. Nxb4+ {[%clk 0:00:02]}  cxb4+ {[%clk 0:00:06]} 63. Kxb4 {[%clk 0:00:03]}  Kc6 {[%clk 0:00:06]} 64. Ka5 {[%clk 0:00:03]}  Kb7 {[%clk 0:00:06]} 65. Kb5 {[%clk 0:00:03]}  Ka7 {[%clk 0:00:06]} 66. Kc6 {[%clk 0:00:02]}  Ka6 {[%clk 0:00:05]} 67. b4 {[%clk 0:00:02]}  Ka7 {[%clk 0:00:06]} 68. b5 {[%clk 0:00:01]}  Ka8 {[%clk 0:00:05]} 69. Kc7 {[%clk 0:00:02]}  Ka7 {[%clk 0:00:05]} 70. b6+ {[%clk 0:00:02]}  Ka8 {[%clk 0:00:06]} 71. b7+ {[%clk 0:00:03]}  Ka7 {[%clk 0:00:06]} 72. b8=Q+ {[%clk 0:00:03]}  Ka6 {[%clk 0:00:07]} 73. Qb6# {[%clk 0:00:04]} 1-0


[Site "https://www.chess.com"]

[Event "Titled Tuesday Blitz May 16 Early 2023"]
[White "UNSTOPPABLE_LEGEND"]
[Black "Da Matta, Eduardo Cesar"]
[BlackFideId "2193108"]
[WhiteElo "2462"]
[BlackElo "1981"]
[Result "1-0"]
[Round "04"]
[TimeControl "180+2"]
[Date "2023.05.16"]
[WhiteClock "0:01:15"]
[BlackClock "0:00:44"]

1. c4 {[%clk 0:03:00]}  c5 {[%clk 0:02:59]} 2. Nf3 {[%clk 0:02:59]}  Nc6 {[%clk 0:03:00]} 3. Nc3 {[%clk 0:02:59]}  g6 {[%clk 0:02:59]} 4. e3 {[%clk 0:02:59]}  Bg7 {[%clk 0:02:59]} 5. d4 {[%clk 0:02:59]}  cxd4 {[%clk 0:02:55]} 6. exd4 {[%clk 0:03:00]}  d6 {[%clk 0:02:50]} 7. d5 {[%clk 0:02:55]}  Ne5 {[%clk 0:02:49]} 8. Nxe5 {[%clk 0:02:55]}  Bxe5 {[%clk 0:02:50]} 9. Bd3 {[%clk 0:02:55]}  Bg7 {[%clk 0:02:43]} 10. O-O {[%clk 0:02:55]}  Nf6 {[%clk 0:02:43]} 11. h3 {[%clk 0:02:46]}  O-O {[%clk 0:02:42]} 12. Be3 {[%clk 0:02:45]}  a6 {[%clk 0:02:39]} 13. Rc1 {[%clk 0:02:41]}  e6 {[%clk 0:02:34]} 14. Na4 {[%clk 0:02:20]}  exd5 {[%clk 0:02:27]} 15. Nb6 {[%clk 0:02:20]}  Rb8 {[%clk 0:02:20]} 16. cxd5 {[%clk 0:02:19]}  Re8 {[%clk 0:02:15]} 17. Qb3 {[%clk 0:02:13]}  Nd7 {[%clk 0:01:44]} 18. Nxc8 {[%clk 0:01:57]}  Rxc8 {[%clk 0:01:41]} 19. Qxb7 {[%clk 0:01:58]}  Rb8 {[%clk 0:01:38]} 20. Qxa6 {[%clk 0:01:57]}  Rxb2 {[%clk 0:01:38]} 21. Qxd6 {[%clk 0:01:46]}  Be5 {[%clk 0:01:24]} 22. Qa6 {[%clk 0:01:38]}  Bb8 {[%clk 0:01:09]} 23. Bb5 {[%clk 0:01:20]}  Rxe3 {[%clk 0:00:44]} 24. Rc8 {[%clk 0:01:15]} 1-0


[Site "https://www.chess.com"]

[Event "Titled Tuesday Blitz May 16 Early 2023"]
[White "Rom, Jasper"]
[Black "Tarnowska, Aleksandra"]
[WhiteFideId "2023733"]
[BlackFideId "1180967"]
[WhiteElo "2233"]
[BlackElo "1776"]
[Result "1-0"]
[Round "04"]
[TimeControl "180+2"]
[Date "2023.05.16"]
[WhiteClock "0:01:46"]
[BlackClock "0:00:00"]

1. e4 {[%clk 0:03:00]}  c5 {[%clk 0:02:12]} 2. Nc3 {[%clk 0:02:58]}  d6 {[%clk 0:02:08]} 3. f4 {[%clk 0:02:58]}  g6 {[%clk 0:02:08]} 4. Nf3 {[%clk 0:02:58]}  Bg7 {[%clk 0:02:09]} 5. Bb5+ {[%clk 0:02:59]}  Bd7 {[%clk 0:02:09]} 6. Bc4 {[%clk 0:02:59]}  Nf6 {[%clk 0:02:06]} 7. d3 {[%clk 0:02:59]}  Nc6 {[%clk 0:02:03]} 8. O-O {[%clk 0:02:59]}  Nd4 {[%clk 0:01:45]} 9. Nxd4 {[%clk 0:02:58]}  cxd4 {[%clk 0:01:46]} 10. Ne2 {[%clk 0:02:58]}  b5 {[%clk 0:01:36]} 11. Bb3 {[%clk 0:02:57]}  e5 {[%clk 0:01:25]} 12. Qe1 {[%clk 0:02:49]}  a5 {[%clk 0:01:17]} 13. a3 {[%clk 0:02:48]}  h5 {[%clk 0:01:11]} 14. fxe5 {[%clk 0:02:44]}  dxe5 {[%clk 0:01:11]} 15. Bg5 {[%clk 0:02:44]}  Qb6 {[%clk 0:01:06]} 16. Qf2 {[%clk 0:02:34]}  Ra6 {[%clk 0:01:00]} 17. a4 {[%clk 0:02:20]}  O-O {[%clk 0:00:42]} 18. Qh4 {[%clk 0:02:05]}  Qd6 {[%clk 0:00:05]} 19. h3 {[%clk 0:01:49]}  bxa4 {[%clk 0:00:05]} 20. Bc4 {[%clk 0:01:46]}  Rb6 {[%clk 0:00:00]} 21. Rf3 {[%clk 0:01:46]} 1-0


[Site "https://www.chess.com"]

[Event "Titled Tuesday Blitz May 16 Early 2023"]
[White "Srebrnic, Marko"]
[Black "KSho99"]
[WhiteFideId "14603616"]
[WhiteElo "2341"]
[BlackElo "2154"]
[Result "1-0"]
[Round "04"]
[TimeControl "180+2"]
[Date "2023.05.16"]
[WhiteClock "0:01:47"]
[BlackClock "0:00:15"]

1. e4 {[%clk 0:03:00]}  e6 {[%clk 0:02:56]} 2. d4 {[%clk 0:03:00]}  d5 {[%clk 0:02:56]} 3. Nc3 {[%clk 0:03:01]}  Be7 {[%clk 0:02:56]} 4. g3 {[%clk 0:02:58]}  Nf6 {[%clk 0:02:48]} 5. f3 {[%clk 0:02:57]}  dxe4 {[%clk 0:02:29]} 6. fxe4 {[%clk 0:02:55]}  e5 {[%clk 0:02:25]} 7. d5 {[%clk 0:02:41]}  Bb4 {[%clk 0:02:01]} 8. Bg5 {[%clk 0:02:33]}  Nbd7 {[%clk 0:01:54]} 9. Nf3 {[%clk 0:02:26]}  O-O {[%clk 0:01:43]} 10. Bh3 {[%clk 0:02:17]}  h6 {[%clk 0:01:43]} 11. Bxf6 {[%clk 0:02:18]}  Nxf6 {[%clk 0:01:43]} 12. Bxc8 {[%clk 0:02:17]}  Qxc8 {[%clk 0:01:35]} 13. Qe2 {[%clk 0:02:13]}  Qg4 {[%clk 0:01:25]} 14. Nd2 {[%clk 0:02:05]}  c6 {[%clk 0:01:03]} 15. dxc6 {[%clk 0:01:56]}  bxc6 {[%clk 0:00:56]} 16. Qxg4 {[%clk 0:01:56]}  Nxg4 {[%clk 0:00:53]} 17. Ke2 {[%clk 0:01:56]}  Bxc3 {[%clk 0:00:49]} 18. bxc3 {[%clk 0:01:56]}  Rab8 {[%clk 0:00:48]} 19. Rab1 {[%clk 0:01:55]}  f6 {[%clk 0:00:29]} 20. h3 {[%clk 0:01:52]}  Rxb1 {[%clk 0:00:24]} 21. Rxb1 {[%clk 0:01:51]}  f5 {[%clk 0:00:16]} 22. hxg4 {[%clk 0:01:50]}  fxg4 {[%clk 0:00:15]} 23. Rb7 {[%clk 0:01:47]} 1-0


[Site "https://www.chess.com"]

[Event "Titled Tuesday Blitz May 16 Early 2023"]
[White "Rios Escobar, Adan"]
[Black "dDobravcan"]
[WhiteFideId "3403645"]
[WhiteElo "2453"]
[BlackElo "2130"]
[Result "1-0"]
[Round "04"]
[TimeControl "180+2"]
[Date "2023.05.16"]
[WhiteClock "0:01:15"]
[BlackClock "0:00:02"]

1. d4 {[%clk 0:02:57]}  d6 {[%clk 0:02:59]} 2. g3 {[%clk 0:02:55]}  Nd7 {[%clk 0:02:53]} 3. Bg2 {[%clk 0:02:52]}  e5 {[%clk 0:02:54]} 4. e4 {[%clk 0:02:43]}  Ngf6 {[%clk 0:02:48]} 5. Ne2 {[%clk 0:02:41]}  c6 {[%clk 0:02:42]} 6. a4 {[%clk 0:02:40]}  a5 {[%clk 0:02:40]} 7. Nbc3 {[%clk 0:02:38]}  h6 {[%clk 0:02:31]} 8. h3 {[%clk 0:02:38]}  g5 {[%clk 0:02:24]} 9. Be3 {[%clk 0:02:33]}  Qc7 {[%clk 0:02:22]} 10. Qd2 {[%clk 0:02:32]}  Be7 {[%clk 0:02:12]} 11. b3 {[%clk 0:02:31]}  Nf8 {[%clk 0:02:07]} 12. f4 {[%clk 0:02:29]}  gxf4 {[%clk 0:02:01]} 13. gxf4 {[%clk 0:02:30]}  Ng6 {[%clk 0:02:00]} 14. O-O-O {[%clk 0:02:24]}  Nh4 {[%clk 0:01:47]} 15. Rdg1 {[%clk 0:02:20]}  Bd7 {[%clk 0:01:03]} 16. fxe5 {[%clk 0:02:08]}  dxe5 {[%clk 0:01:02]} 17. dxe5 {[%clk 0:02:08]}  Qxe5 {[%clk 0:00:44]} 18. Bd4 {[%clk 0:02:08]}  Qc7 {[%clk 0:00:36]} 19. e5 {[%clk 0:01:59]}  Nxg2 {[%clk 0:00:17]} 20. exf6 {[%clk 0:01:49]}  Ba3+ {[%clk 0:00:14]} 21. Kb1 {[%clk 0:01:46]}  Nh4 {[%clk 0:00:13]} 22. Qd3 {[%clk 0:01:28]}  O-O-O {[%clk 0:00:11]} 23. Qc4 {[%clk 0:01:19]}  Be6 {[%clk 0:00:10]} 24. Qd3 {[%clk 0:01:15]}  c5 {[%clk 0:00:09]} 25. Nb5 {[%clk 0:01:14]}  Qc6 {[%clk 0:00:07]} 26. Na7+ {[%clk 0:01:14]}  Kb8 {[%clk 0:00:02]} 27. Nxc6+ {[%clk 0:01:15]} 1-0


[Site "https://www.chess.com"]

[Event "Titled Tuesday Blitz May 16 Early 2023"]
[White "Zavortink, Matt"]
[Black "Flis, Pawel"]
[WhiteFideId "2034263"]
[BlackFideId "1112864"]
[WhiteElo "2452"]
[BlackElo "1822"]
[Result "1-0"]
[Round "04"]
[TimeControl "180+2"]
[Date "2023.05.16"]
[WhiteClock "0:01:44"]
[BlackClock "0:00:58"]

1. Nf3 {[%clk 0:03:00]}  Nf6 {[%clk 0:02:56]} 2. g3 {[%clk 0:03:00]}  g6 {[%clk 0:02:55]} 3. b3 {[%clk 0:03:00]}  Bg7 {[%clk 0:02:55]} 4. Bb2 {[%clk 0:03:00]}  O-O {[%clk 0:02:56]} 5. Bg2 {[%clk 0:03:01]}  d6 {[%clk 0:02:56]} 6. d4 {[%clk 0:03:01]}  c5 {[%clk 0:02:55]} 7. c4 {[%clk 0:02:56]}  cxd4 {[%clk 0:02:47]} 8. Nxd4 {[%clk 0:02:55]}  Nc6 {[%clk 0:02:47]} 9. Nxc6 {[%clk 0:02:51]}  bxc6 {[%clk 0:02:48]} 10. Bxc6 {[%clk 0:02:49]}  Bh3 {[%clk 0:02:47]} 11. Bxa8 {[%clk 0:02:40]}  Qxa8 {[%clk 0:02:48]} 12. f3 {[%clk 0:02:40]}  Ng4 {[%clk 0:02:26]} 13. Bxg7 {[%clk 0:02:37]}  Kxg7 {[%clk 0:02:20]} 14. Nc3 {[%clk 0:02:26]}  Kg8 {[%clk 0:02:08]} 15. Qd4 {[%clk 0:02:18]}  e5 {[%clk 0:01:56]} 16. Qd5 {[%clk 0:02:12]}  Ne3 {[%clk 0:01:45]} 17. Qxa8 {[%clk 0:02:07]}  Rxa8 {[%clk 0:01:46]} 18. Kf2 {[%clk 0:01:59]}  Rf8 {[%clk 0:01:47]} 19. Kxe3 {[%clk 0:01:58]}  Ra8 {[%clk 0:01:48]} 20. Nd5 {[%clk 0:01:57]}  Kg7 {[%clk 0:01:15]} 21. Kf2 {[%clk 0:01:52]}  f5 {[%clk 0:01:12]} 22. Rhd1 {[%clk 0:01:48]}  e4 {[%clk 0:01:11]} 23. f4 {[%clk 0:01:48]}  h5 {[%clk 0:01:07]} 24. Ne3 {[%clk 0:01:46]}  Rd8 {[%clk 0:00:58]} 25. c5 {[%clk 0:01:44]} 1-0


[Site "https://www.chess.com"]

[Event "Titled Tuesday Blitz May 16 Early 2023"]
[White "Yeritsyan, Hayk"]
[Black "Maluco_do_Natal_00"]
[WhiteFideId "13307320"]
[WhiteElo "2442"]
[BlackElo "2018"]
[Result "1-0"]
[Round "04"]
[TimeControl "180+2"]
[Date "2023.05.16"]
[WhiteClock "0:00:59"]
[BlackClock "0:00:00"]

1. b3 {[%clk 0:02:55]}  e5 {[%clk 0:02:55]} 2. Bb2 {[%clk 0:02:44]}  d6 {[%clk 0:02:52]} 3. e3 {[%clk 0:02:43]}  Nc6 {[%clk 0:02:50]} 4. Nf3 {[%clk 0:02:43]}  Be6 {[%clk 0:02:45]} 5. d4 {[%clk 0:02:43]}  e4 {[%clk 0:02:01]} 6. Nfd2 {[%clk 0:02:41]}  d5 {[%clk 0:02:00]} 7. c4 {[%clk 0:02:39]}  f5 {[%clk 0:01:50]} 8. Nc3 {[%clk 0:02:37]}  Nf6 {[%clk 0:01:50]} 9. cxd5 {[%clk 0:02:34]}  Nxd5 {[%clk 0:01:50]} 10. Bb5 {[%clk 0:02:31]}  a6 {[%clk 0:01:41]} 11. Bxc6+ {[%clk 0:02:29]}  bxc6 {[%clk 0:01:41]} 12. O-O {[%clk 0:02:26]}  Bb4 {[%clk 0:01:40]} 13. Qc2 {[%clk 0:02:22]}  Bxc3 {[%clk 0:01:38]} 14. Bxc3 {[%clk 0:02:21]}  O-O {[%clk 0:01:36]} 15. Nc4 {[%clk 0:02:19]}  f4 {[%clk 0:01:23]} 16. exf4 {[%clk 0:01:56]}  Rxf4 {[%clk 0:01:07]} 17. Bd2 {[%clk 0:01:51]}  Rf6 {[%clk 0:00:38]} 18. Bg5 {[%clk 0:01:48]}  Bf5 {[%clk 0:00:29]} 19. Ne3 {[%clk 0:01:44]}  Bg6 {[%clk 0:00:08]} 20. Bxf6 {[%clk 0:01:38]}  Qxf6 {[%clk 0:00:08]} 21. Nxd5 {[%clk 0:01:36]}  cxd5 {[%clk 0:00:08]} 22. Qxc7 {[%clk 0:01:36]}  Bf7 {[%clk 0:00:05]} 23. Qe5 {[%clk 0:01:35]}  Qg6 {[%clk 0:00:04]} 24. Rac1 {[%clk 0:01:34]}  Re8 {[%clk 0:00:04]} 25. Qg3 {[%clk 0:01:34]}  Qf6 {[%clk 0:00:03]} 26. Rc7 {[%clk 0:01:10]}  Qxd4 {[%clk 0:00:02]} 27. h4 {[%clk 0:01:07]}  Qf6 {[%clk 0:00:02]} 28. Rfc1 {[%clk 0:01:02]}  d4 {[%clk 0:00:02]} 29. Rc8 {[%clk 0:01:00]}  g6 {[%clk 0:00:01]} 30. Rxe8+ {[%clk 0:00:59]}  Bxe8 {[%clk 0:00:01]} 31. Rc8 {[%clk 0:01:00]}  Kf7 {[%clk 0:00:01]} 32. Qc7+ {[%clk 0:00:59]}  Qe7 {[%clk 0:00:00]} 33. Qf4+ {[%clk 0:00:59]} 1-0


[Site "https://www.chess.com"]

[Event "Titled Tuesday Blitz May 16 Early 2023"]
[White "Balint, Vilmos"]
[Black "Baches Garcia, Guillermo"]
[WhiteFideId "718050"]
[BlackFideId "2209764"]
[WhiteElo "2034"]
[BlackElo "2487"]
[Result "1-0"]
[Round "04"]
[TimeControl "180+2"]
[Date "2023.05.16"]
[WhiteClock "0:00:32"]
[BlackClock "0:00:00"]

1. d4 {[%clk 0:02:56]}  d5 {[%clk 0:03:00]} 2. Nc3 {[%clk 0:02:55]}  Nf6 {[%clk 0:02:59]} 3. Bf4 {[%clk 0:02:55]}  c5 {[%clk 0:02:58]} 4. e3 {[%clk 0:02:56]}  cxd4 {[%clk 0:02:58]} 5. exd4 {[%clk 0:02:56]}  a6 {[%clk 0:02:58]} 6. Bd3 {[%clk 0:02:54]}  Nc6 {[%clk 0:02:58]} 7. Nf3 {[%clk 0:02:54]}  Nb4 {[%clk 0:02:55]} 8. Be2 {[%clk 0:02:53]}  Bf5 {[%clk 0:02:52]} 9. Rc1 {[%clk 0:02:52]}  e6 {[%clk 0:02:49]} 10. a3 {[%clk 0:02:52]}  Nc6 {[%clk 0:02:49]} 11. h3 {[%clk 0:02:51]}  Bd6 {[%clk 0:02:45]} 12. Qd2 {[%clk 0:02:47]}  Ne4 {[%clk 0:02:38]} 13. Nxe4 {[%clk 0:02:42]}  dxe4 {[%clk 0:02:32]} 14. Ne5 {[%clk 0:02:31]}  Bxe5 {[%clk 0:02:14]} 15. dxe5 {[%clk 0:02:16]}  Qxd2+ {[%clk 0:02:02]} 16. Kxd2 {[%clk 0:02:17]}  Nd4 {[%clk 0:01:38]} 17. Bh5 {[%clk 0:02:00]}  e3+ {[%clk 0:01:24]} 18. fxe3 {[%clk 0:01:56]}  Nc6 {[%clk 0:01:02]} 19. Bf3 {[%clk 0:01:53]}  h6 {[%clk 0:00:55]} 20. Rhd1 {[%clk 0:01:49]}  g5 {[%clk 0:00:53]} 21. Bg3 {[%clk 0:01:48]}  Ke7 {[%clk 0:00:48]} 22. e4 {[%clk 0:01:34]}  Bg6 {[%clk 0:00:47]} 23. Ke3 {[%clk 0:01:35]}  Rac8 {[%clk 0:00:45]} 24. Be2 {[%clk 0:01:31]}  Rc7 {[%clk 0:00:39]} 25. Rd6 {[%clk 0:01:31]}  Rhc8 {[%clk 0:00:37]} 26. c3 {[%clk 0:01:31]}  Na5 {[%clk 0:00:36]} 27. Rcd1 {[%clk 0:01:30]}  Nc4+ {[%clk 0:00:32]} 28. Bxc4 {[%clk 0:01:30]}  Rxc4 {[%clk 0:00:32]} 29. Rd7+ {[%clk 0:01:30]}  Kf8 {[%clk 0:00:32]} 30. Rxb7 {[%clk 0:01:30]}  Rxe4+ {[%clk 0:00:30]} 31. Kf2 {[%clk 0:01:17]}  h5 {[%clk 0:00:28]} 32. h4 {[%clk 0:01:11]}  gxh4 {[%clk 0:00:24]} 33. Bh2 {[%clk 0:01:11]}  Rg4 {[%clk 0:00:21]} 34. Rb4 {[%clk 0:00:58]}  Be4 {[%clk 0:00:15]} 35. g3 {[%clk 0:00:58]}  hxg3+ {[%clk 0:00:13]} 36. Bxg3 {[%clk 0:00:58]}  h4 {[%clk 0:00:14]} 37. Bxh4 {[%clk 0:00:42]}  Rxh4 {[%clk 0:00:14]} 38. Ke3 {[%clk 0:00:42]}  Rh2 {[%clk 0:00:06]} 39. Kxe4 {[%clk 0:00:41]}  Rc5 {[%clk 0:00:06]} 40. Rd6 {[%clk 0:00:39]}  Re2+ {[%clk 0:00:05]} 41. Kd3 {[%clk 0:00:39]}  Rexe5 {[%clk 0:00:06]} 42. Rxa6 {[%clk 0:00:38]}  Rh5 {[%clk 0:00:05]} 43. a4 {[%clk 0:00:37]}  Kg7 {[%clk 0:00:03]} 44. Rg4+ {[%clk 0:00:33]}  Kf6 {[%clk 0:00:03]} 45. b4 {[%clk 0:00:34]}  Rcd5+ {[%clk 0:00:03]} 46. Kc2 {[%clk 0:00:34]}  Rh3 {[%clk 0:00:03]} 47. Rc6 {[%clk 0:00:32]}  Rf5 {[%clk 0:00:02]} 48. Rg2 {[%clk 0:00:32]}  Rff3 {[%clk 0:00:02]} 49. a5 {[%clk 0:00:31]}  Ke5 {[%clk 0:00:02]} 50. a6 {[%clk 0:00:32]}  Kd5 {[%clk 0:00:00]} 51. Rc8 {[%clk 0:00:32]} 1-0


[Site "https://www.chess.com"]

[Event "Titled Tuesday Blitz May 16 Early 2023"]
[White "Jiganchine, Roman"]
[Black "Omariev, Maksim"]
[WhiteFideId "2603667"]
[BlackFideId "4193423"]
[WhiteElo "2255"]
[BlackElo "2407"]
[Result "0-1"]
[Round "04"]
[TimeControl "180+2"]
[Date "2023.05.16"]
[WhiteClock "0:01:03"]
[BlackClock "0:00:37"]

1. e4 {[%clk 0:02:58]}  c5 {[%clk 0:02:59]} 2. Nf3 {[%clk 0:02:58]}  d6 {[%clk 0:03:00]} 3. Bb5+ {[%clk 0:02:57]}  Nd7 {[%clk 0:03:00]} 4. a4 {[%clk 0:02:56]}  a6 {[%clk 0:02:59]} 5. Be2 {[%clk 0:02:56]}  Ngf6 {[%clk 0:02:59]} 6. Nc3 {[%clk 0:02:56]}  b6 {[%clk 0:02:57]} 7. O-O {[%clk 0:02:54]}  Bb7 {[%clk 0:02:58]} 8. Re1 {[%clk 0:02:38]}  Nxe4 {[%clk 0:02:54]} 9. d4 {[%clk 0:02:28]}  Nxc3 {[%clk 0:02:52]} 10. bxc3 {[%clk 0:02:27]}  e6 {[%clk 0:02:47]} 11. d5 {[%clk 0:02:20]}  Bxd5 {[%clk 0:02:37]} 12. Bb5 {[%clk 0:02:18]}  Bb7 {[%clk 0:02:20]} 13. Bg5 {[%clk 0:02:05]}  Be7 {[%clk 0:02:03]} 14. Bxe7 {[%clk 0:02:02]}  Qxe7 {[%clk 0:02:03]} 15. Bd3 {[%clk 0:02:02]}  O-O {[%clk 0:01:59]} 16. h4 {[%clk 0:02:01]}  Bxf3 {[%clk 0:01:52]} 17. Qxf3 {[%clk 0:02:01]}  Qxh4 {[%clk 0:01:52]} 18. Re4 {[%clk 0:02:01]}  Qf6 {[%clk 0:01:39]} 19. Qh3 {[%clk 0:01:55]}  g6 {[%clk 0:01:33]} 20. Rh4 {[%clk 0:01:53]}  Qg7 {[%clk 0:01:27]} 21. f4 {[%clk 0:01:42]}  d5 {[%clk 0:01:18]} 22. Rf1 {[%clk 0:01:38]}  c4 {[%clk 0:01:17]} 23. Be2 {[%clk 0:01:35]}  Nc5 {[%clk 0:01:17]} 24. f5 {[%clk 0:01:28]}  exf5 {[%clk 0:01:14]} 25. Bf3 {[%clk 0:01:22]}  Ne4 {[%clk 0:01:11]} 26. Bxe4 {[%clk 0:01:16]}  dxe4 {[%clk 0:01:07]} 27. g4 {[%clk 0:01:16]}  fxg4 {[%clk 0:01:03]} 28. Rxg4 {[%clk 0:01:12]}  f5 {[%clk 0:01:02]} 29. Rh4 {[%clk 0:01:12]}  Rad8 {[%clk 0:00:57]} 30. Qe3 {[%clk 0:01:08]}  Rd6 {[%clk 0:00:49]} 31. Rh2 {[%clk 0:01:07]}  Qe5 {[%clk 0:00:44]} 32. Rg2 {[%clk 0:01:06]}  f4 {[%clk 0:00:42]} 33. Qh3 {[%clk 0:01:03]}  f3 {[%clk 0:00:37]} 0-1


[Site "https://www.chess.com"]

[Event "Titled Tuesday Blitz May 16 Early 2023"]
[White "Cramling Bellon, Anna"]
[Black "Prieto Aranguren, Alain"]
[WhiteFideId "32009232"]
[BlackFideId "2268906"]
[WhiteElo "1976"]
[BlackElo "2209"]
[Result "0-1"]
[Round "04"]
[TimeControl "180+2"]
[Date "2023.05.16"]
[WhiteClock "0:00:00"]
[BlackClock "0:00:04"]

1. d4 {[%clk 0:03:00]}  d5 {[%clk 0:02:53]} 2. c4 {[%clk 0:03:01]}  e6 {[%clk 0:02:49]} 3. Nc3 {[%clk 0:03:00]}  Nf6 {[%clk 0:02:50]} 4. cxd5 {[%clk 0:03:00]}  exd5 {[%clk 0:02:50]} 5. Bg5 {[%clk 0:03:01]}  Be7 {[%clk 0:02:50]} 6. e3 {[%clk 0:03:02]}  O-O {[%clk 0:02:50]} 7. Bd3 {[%clk 0:03:02]}  h6 {[%clk 0:02:38]} 8. Bh4 {[%clk 0:03:00]}  c5 {[%clk 0:02:36]} 9. dxc5 {[%clk 0:03:00]}  Nbd7 {[%clk 0:02:34]} 10. Rc1 {[%clk 0:02:19]}  Nxc5 {[%clk 0:02:33]} 11. Bxf6 {[%clk 0:02:07]}  Nxd3+ {[%clk 0:02:25]} 12. Qxd3 {[%clk 0:02:06]}  Bxf6 {[%clk 0:02:26]} 13. Nf3 {[%clk 0:02:02]}  Be6 {[%clk 0:02:23]} 14. O-O {[%clk 0:02:00]}  Rc8 {[%clk 0:02:23]} 15. Nb5 {[%clk 0:01:56]}  Rxc1 {[%clk 0:02:14]} 16. Rxc1 {[%clk 0:01:55]}  Bxb2 {[%clk 0:02:11]} 17. Rb1 {[%clk 0:01:50]}  Bf6 {[%clk 0:02:06]} 18. Nxa7 {[%clk 0:01:29]}  Qd7 {[%clk 0:01:44]} 19. Nd4 {[%clk 0:01:06]}  Ra8 {[%clk 0:01:38]} 20. Nxe6 {[%clk 0:00:36]}  fxe6 {[%clk 0:01:29]} 21. Nb5 {[%clk 0:00:23]}  Rxa2 {[%clk 0:01:26]} 22. g3 {[%clk 0:00:23]}  Ra1 {[%clk 0:00:54]} 23. Rxa1 {[%clk 0:00:07]}  Bxa1 {[%clk 0:00:54]} 24. Nd4 {[%clk 0:00:06]}  Bxd4 {[%clk 0:00:43]} 25. exd4 {[%clk 0:00:07]}  Qf7 {[%clk 0:00:37]} 26. Qb5 {[%clk 0:00:06]}  Kh7 {[%clk 0:00:36]} 27. h4 {[%clk 0:00:04]}  h5 {[%clk 0:00:34]} 28. Kg2 {[%clk 0:00:04]}  Kg6 {[%clk 0:00:29]} 29. Qd3+ {[%clk 0:00:04]}  Qf5 {[%clk 0:00:28]} 30. Qb5 {[%clk 0:00:02]}  Qe4+ {[%clk 0:00:27]} 31. Kh2 {[%clk 0:00:01]}  Qxd4 {[%clk 0:00:25]} 32. Qe8+ {[%clk 0:00:01]}  Kf6 {[%clk 0:00:10]} 33. Qxh5 {[%clk 0:00:01]}  Qxf2+ {[%clk 0:00:09]} 34. Kh1 {[%clk 0:00:02]}  Qe1+ {[%clk 0:00:08]} 35. Kg2 {[%clk 0:00:02]}  Qd2+ {[%clk 0:00:07]} 36. Kg1 {[%clk 0:00:02]}  Qe1+ {[%clk 0:00:05]} 37. Kg2 {[%clk 0:00:02]}  Qe4+ {[%clk 0:00:05]} 38. Kg1 {[%clk 0:00:02]}  Qf5 {[%clk 0:00:05]} 39. Qe8 {[%clk 0:00:02]}  Ke5 {[%clk 0:00:03]} 40. Qb8+ {[%clk 0:00:01]}  Ke4 {[%clk 0:00:04]} 41. Qxb7 {[%clk 0:00:02]}  Kf3 {[%clk 0:00:04]} 42. Qb3+ {[%clk 0:00:01]}  Kg4 {[%clk 0:00:04]} 43. Qd1+ {[%clk 0:00:01]}  Kxg3 {[%clk 0:00:04]} 44. Qe1+ {[%clk 0:00:00]}  Kh3 {[%clk 0:00:04]} 0-1


[Site "https://www.chess.com"]